[Event "Titled Tuesday Blitz October 04 Early 2022"]
[White "Girel, Joseph"]
[Black "Gabrielian, Artur"]
[WhiteFideId "36033561"]
[BlackFideId "4131002"]
[WhiteElo "2281"]
[BlackElo "2432"]
[Result "1/2-1/2"]
[Round "08"]
[TimeControl "180+1"]
[Date "2022.10.04"]
[WhiteClock "0:00:21"]
[BlackClock "0:00:08"]

1. d4 {[%clk 0:03:00]}  Nf6 {[%clk 0:02:59]} 2. c4 {[%clk 0:03:00]}  c5 {[%clk 0:03:00]} 3. d5 {[%clk 0:03:00]}  e6 {[%clk 0:03:00]} 4. Nc3 {[%clk 0:03:00]}  exd5 {[%clk 0:03:01]} 5. cxd5 {[%clk 0:03:00]}  d6 {[%clk 0:03:01]} 6. Nf3 {[%clk 0:03:01]}  g6 {[%clk 0:03:02]} 7. Bf4 {[%clk 0:03:01]}  Bg7 {[%clk 0:03:01]} 8. Qa4+ {[%clk 0:03:01]}  Bd7 {[%clk 0:03:01]} 9. Qb3 {[%clk 0:03:01]}  b5 {[%clk 0:03:02]} 10. Bxd6 {[%clk 0:03:00]}  Qb6 {[%clk 0:03:02]} 11. Be5 {[%clk 0:03:01]}  O-O {[%clk 0:03:02]} 12. e3 {[%clk 0:03:00]}  c4 {[%clk 0:03:00]} 13. Qd1 {[%clk 0:02:59]}  b4 {[%clk 0:03:00]} 14. Nb1 {[%clk 0:02:59]}  Rc8 {[%clk 0:03:00]} 15. Be2 {[%clk 0:02:53]}  Qa5 {[%clk 0:02:51]} 16. Nbd2 {[%clk 0:02:34]}  c3 {[%clk 0:02:46]} 17. Nc4 {[%clk 0:02:26]}  Qxd5 {[%clk 0:02:45]} 18. bxc3 {[%clk 0:02:23]}  bxc3 {[%clk 0:02:40]} 19. Bxc3 {[%clk 0:02:13]}  Be6 {[%clk 0:02:27]} 20. Qxd5 {[%clk 0:02:06]}  Bxd5 {[%clk 0:02:23]} 21. Rd1 {[%clk 0:01:50]}  Nbd7 {[%clk 0:02:23]} 22. Nfd2 {[%clk 0:01:33]}  Bxg2 {[%clk 0:02:18]} 23. Rg1 {[%clk 0:01:34]}  Bd5 {[%clk 0:02:18]} 24. Bd4 {[%clk 0:01:33]}  Rab8 {[%clk 0:01:56]} 25. Bxa7 {[%clk 0:01:29]}  Ra8 {[%clk 0:01:56]} 26. Bd4 {[%clk 0:01:28]}  Rxa2 {[%clk 0:01:56]} 27. Rg5 {[%clk 0:01:15]}  Bxc4 {[%clk 0:01:41]} 28. Bxc4 {[%clk 0:01:00]}  Rxd2 {[%clk 0:01:39]} 29. Rxd2 {[%clk 0:00:42]}  Rxc4 {[%clk 0:01:38]} 30. Ra2 {[%clk 0:00:43]}  h6 {[%clk 0:01:28]} 31. Rb5 {[%clk 0:00:43]}  Rc8 {[%clk 0:01:00]} 32. Ra7 {[%clk 0:00:43]}  Nf8 {[%clk 0:00:25]} 33. Rbb7 {[%clk 0:00:41]}  N6d7 {[%clk 0:00:17]} 34. Rxd7 {[%clk 0:00:31]}  Nxd7 {[%clk 0:00:17]} 35. Rxd7 {[%clk 0:00:32]}  Bxd4 {[%clk 0:00:16]} 36. Rxd4 {[%clk 0:00:31]}  Rc1+ {[%clk 0:00:15]} 37. Ke2 {[%clk 0:00:31]}  Rh1 {[%clk 0:00:15]} 38. h4 {[%clk 0:00:30]}  h5 {[%clk 0:00:16]} 39. Kf3 {[%clk 0:00:30]}  Kg7 {[%clk 0:00:16]} 40. Kg2 {[%clk 0:00:30]}  Ra1 {[%clk 0:00:16]} 41. Kg3 {[%clk 0:00:30]}  Ra6 {[%clk 0:00:15]} 42. f3 {[%clk 0:00:30]}  Kf6 {[%clk 0:00:15]} 43. e4 {[%clk 0:00:30]}  Ke6 {[%clk 0:00:14]} 44. Rd5 {[%clk 0:00:29]}  Kf6 {[%clk 0:00:10]} 45. Rb5 {[%clk 0:00:29]}  Kg7 {[%clk 0:00:10]} 46. Kf4 {[%clk 0:00:29]}  Ra1 {[%clk 0:00:10]} 47. Rb7 {[%clk 0:00:28]}  Rg1 {[%clk 0:00:10]} 48. Rc7 {[%clk 0:00:27]}  Kf6 {[%clk 0:00:09]} 49. Ra7 {[%clk 0:00:24]}  Rh1 {[%clk 0:00:09]} 50. Kg3 {[%clk 0:00:24]}  Kg7 {[%clk 0:00:08]} 51. e5 {[%clk 0:00:22]}  Re1 {[%clk 0:00:08]} 52. f4 {[%clk 0:00:22]}  Re3+ {[%clk 0:00:07]} 53. Kg2 {[%clk 0:00:21]}  Kf8 {[%clk 0:00:06]} 54. Ra6 {[%clk 0:00:20]}  Ke7 {[%clk 0:00:06]} 55. Ra7+ {[%clk 0:00:21]}  Ke6 {[%clk 0:00:06]} 56. Ra6+ {[%clk 0:00:21]}  Ke7 {[%clk 0:00:07]} 57. Ra7+ {[%clk 0:00:21]}  Ke8 {[%clk 0:00:07]} 58. Ra8+ {[%clk 0:00:21]}  Ke7 {[%clk 0:00:08]} 59. Ra7+ {[%clk 0:00:21]} 1/2-1/2


[Site "https://www.chess.com"]

[Event "Titled Tuesday Blitz October 04 Early 2022"]
[White "Kamsky, Gata"]
[Black "Boros, Denes"]
[WhiteFideId "2000024"]
[BlackFideId "722340"]
[WhiteElo "2666"]
[BlackElo "2464"]
[Result "1-0"]
[Round "08"]
[TimeControl "180+1"]
[Date "2022.10.04"]
[WhiteClock "0:00:45"]
[BlackClock "0:00:04"]

1. d4 {[%clk 0:03:00]}  c6 {[%clk 0:02:56]} 2. Bf4 {[%clk 0:02:59]}  Qb6 {[%clk 0:02:55]} 3. b3 {[%clk 0:02:55]}  d6 {[%clk 0:02:55]} 4. e3 {[%clk 0:02:55]}  g6 {[%clk 0:02:54]} 5. Nf3 {[%clk 0:02:52]}  Bg7 {[%clk 0:02:54]} 6. Nbd2 {[%clk 0:02:51]}  Nd7 {[%clk 0:02:53]} 7. h3 {[%clk 0:02:42]}  Ngf6 {[%clk 0:02:53]} 8. Bh2 {[%clk 0:02:41]}  c5 {[%clk 0:02:48]} 9. c3 {[%clk 0:02:37]}  O-O {[%clk 0:02:47]} 10. Bd3 {[%clk 0:02:35]}  Qc7 {[%clk 0:02:47]} 11. O-O {[%clk 0:02:33]}  b6 {[%clk 0:02:44]} 12. e4 {[%clk 0:02:33]}  e5 {[%clk 0:02:40]} 13. dxe5 {[%clk 0:02:32]}  Nxe5 {[%clk 0:02:40]} 14. Nxe5 {[%clk 0:02:32]}  dxe5 {[%clk 0:02:41]} 15. Nc4 {[%clk 0:02:31]}  Nh5 {[%clk 0:02:41]} 16. Ne3 {[%clk 0:02:30]}  Nf4 {[%clk 0:02:40]} 17. Bc4 {[%clk 0:02:27]}  Be6 {[%clk 0:02:35]} 18. a4 {[%clk 0:02:21]}  Rad8 {[%clk 0:02:33]} 19. Qc2 {[%clk 0:02:21]}  Bh6 {[%clk 0:02:15]} 20. Rfd1 {[%clk 0:02:19]}  Qe7 {[%clk 0:02:09]} 21. Rxd8 {[%clk 0:02:09]}  Qxd8 {[%clk 0:02:07]} 22. Rd1 {[%clk 0:02:08]}  Qg5 {[%clk 0:02:03]} 23. Kh1 {[%clk 0:02:00]}  Bxc4 {[%clk 0:01:36]} 24. bxc4 {[%clk 0:01:57]}  Kh8 {[%clk 0:01:33]} 25. Rd7 {[%clk 0:01:26]}  a6 {[%clk 0:01:15]} 26. Bg3 {[%clk 0:01:18]}  Nh5 {[%clk 0:01:09]} 27. Bh2 {[%clk 0:01:17]}  Bg7 {[%clk 0:00:49]} 28. Qd1 {[%clk 0:01:10]}  f5 {[%clk 0:00:48]} 29. Qd6 {[%clk 0:00:57]}  Nf6 {[%clk 0:00:29]} 30. Rxg7 {[%clk 0:00:54]}  Kxg7 {[%clk 0:00:29]} 31. Bxe5 {[%clk 0:00:53]}  Kg8 {[%clk 0:00:17]} 32. f4 {[%clk 0:00:51]}  Qh4 {[%clk 0:00:09]} 33. Qe6+ {[%clk 0:00:48]}  Rf7 {[%clk 0:00:09]} 34. Nd5 {[%clk 0:00:47]}  Nxe4 {[%clk 0:00:04]} 35. Qe8+ {[%clk 0:00:45]}  Rf8 {[%clk 0:00:04]} 36. Ne7+ {[%clk 0:00:45]} 1-0


[Site "https://www.chess.com"]

[Event "Titled Tuesday Blitz October 04 Early 2022"]
[White "Kravtsiv, Martyn"]
[Black "Eljanov, Pavel"]
[WhiteFideId "14113147"]
[BlackFideId "14102951"]
[WhiteElo "2694"]
[BlackElo "2601"]
[Result "1-0"]
[Round "08"]
[TimeControl "180+1"]
[Date "2022.10.04"]
[WhiteClock "0:00:35"]
[BlackClock "0:00:26"]

1. e4 {[%clk 0:03:00]}  c6 {[%clk 0:03:00]} 2. Nf3 {[%clk 0:03:01]}  d5 {[%clk 0:03:00]} 3. d3 {[%clk 0:03:01]}  g6 {[%clk 0:02:59]} 4. e5 {[%clk 0:03:00]}  Bg7 {[%clk 0:02:59]} 5. d4 {[%clk 0:03:01]}  f6 {[%clk 0:02:58]} 6. c4 {[%clk 0:03:00]}  fxe5 {[%clk 0:02:56]} 7. Nxe5 {[%clk 0:03:00]}  Nh6 {[%clk 0:02:51]} 8. cxd5 {[%clk 0:02:42]}  cxd5 {[%clk 0:02:49]} 9. Bxh6 {[%clk 0:02:31]}  Bxh6 {[%clk 0:02:48]} 10. Bb5+ {[%clk 0:02:31]}  Nd7 {[%clk 0:02:23]} 11. Qf3 {[%clk 0:02:27]}  Rf8 {[%clk 0:02:10]} 12. Qxd5 {[%clk 0:02:27]}  a6 {[%clk 0:01:53]} 13. Bxd7+ {[%clk 0:01:54]}  Bxd7 {[%clk 0:01:53]} 14. Nc3 {[%clk 0:01:55]}  Qc7 {[%clk 0:01:20]} 15. Nxd7 {[%clk 0:01:36]}  Qxd7 {[%clk 0:01:20]} 16. Qxd7+ {[%clk 0:01:33]}  Kxd7 {[%clk 0:01:21]} 17. Rd1 {[%clk 0:01:29]}  Rac8 {[%clk 0:01:20]} 18. Ke2 {[%clk 0:01:22]}  Rf6 {[%clk 0:01:15]} 19. Rd3 {[%clk 0:01:17]}  Rb6 {[%clk 0:01:12]} 20. b3 {[%clk 0:01:10]}  Rbc6 {[%clk 0:01:12]} 21. Ne4 {[%clk 0:01:09]}  Rc2+ {[%clk 0:01:11]} 22. Kf3 {[%clk 0:01:09]}  Rxa2 {[%clk 0:01:06]} 23. Re1 {[%clk 0:01:09]}  b6 {[%clk 0:01:02]} 24. g4 {[%clk 0:01:03]}  a5 {[%clk 0:01:01]} 25. d5 {[%clk 0:01:01]}  Bg7 {[%clk 0:00:54]} 26. d6 {[%clk 0:00:59]}  e6 {[%clk 0:00:55]} 27. Kg2 {[%clk 0:00:54]}  Rcc2 {[%clk 0:00:52]} 28. Rf3 {[%clk 0:00:54]}  Bd4 {[%clk 0:00:46]} 29. Rf7+ {[%clk 0:00:50]}  Kd8 {[%clk 0:00:46]} 30. Rd1 {[%clk 0:00:36]}  e5 {[%clk 0:00:29]} 31. Kh3 {[%clk 0:00:36]}  Re2 {[%clk 0:00:26]} 32. Rxd4 {[%clk 0:00:34]}  exd4 {[%clk 0:00:26]} 33. Nf6 {[%clk 0:00:35]} 1-0


[Site "https://www.chess.com"]

[Event "Titled Tuesday Blitz October 04 Early 2022"]
[White "Matinian, Nikita"]
[Black "Rustemov, Alexander"]
[WhiteFideId "24129100"]
[BlackFideId "4119002"]
[WhiteElo "2422"]
[BlackElo "2812"]
[Result "1-0"]
[Round "08"]
[TimeControl "180+1"]
[Date "2022.10.04"]
[WhiteClock "0:00:11"]
[BlackClock "0:00:07"]

1. e4 {[%clk 0:03:00]}  e6 {[%clk 0:02:59]} 2. d4 {[%clk 0:03:00]}  d5 {[%clk 0:03:00]} 3. Nc3 {[%clk 0:03:01]}  Bb4 {[%clk 0:03:00]} 4. Ne2 {[%clk 0:03:01]}  Nf6 {[%clk 0:02:59]} 5. e5 {[%clk 0:03:00]}  Nfd7 {[%clk 0:02:59]} 6. a3 {[%clk 0:03:00]}  Be7 {[%clk 0:02:59]} 7. b4 {[%clk 0:02:55]}  b6 {[%clk 0:02:57]} 8. Nf4 {[%clk 0:02:53]}  c5 {[%clk 0:02:56]} 9. Qg4 {[%clk 0:02:49]}  O-O {[%clk 0:02:53]} 10. Bd3 {[%clk 0:02:12]}  cxd4 {[%clk 0:02:33]} 11. Nxe6 {[%clk 0:02:05]}  fxe6 {[%clk 0:02:28]} 12. Qxe6+ {[%clk 0:02:05]}  Kh8 {[%clk 0:02:20]} 13. Nxd5 {[%clk 0:02:05]}  Re8 {[%clk 0:01:49]} 14. Nxe7 {[%clk 0:01:24]}  Qxe7 {[%clk 0:01:47]} 15. Qxe7 {[%clk 0:01:24]}  Rxe7 {[%clk 0:01:46]} 16. f4 {[%clk 0:01:25]}  Bb7 {[%clk 0:01:39]} 17. O-O {[%clk 0:01:20]}  Nc6 {[%clk 0:01:38]} 18. Bb2 {[%clk 0:01:13]}  a6 {[%clk 0:01:28]} 19. Rae1 {[%clk 0:01:12]}  b5 {[%clk 0:01:27]} 20. h4 {[%clk 0:01:03]}  Nb6 {[%clk 0:01:22]} 21. Bc1 {[%clk 0:01:02]}  Nc4 {[%clk 0:01:16]} 22. e6 {[%clk 0:00:56]}  g6 {[%clk 0:01:04]} 23. h5 {[%clk 0:00:56]}  Kg7 {[%clk 0:01:03]} 24. hxg6 {[%clk 0:00:53]}  hxg6 {[%clk 0:01:04]} 25. f5 {[%clk 0:00:53]}  gxf5 {[%clk 0:01:00]} 26. Rxf5 {[%clk 0:00:54]}  N6e5 {[%clk 0:00:40]} 27. Rexe5 {[%clk 0:00:44]}  Nxe5 {[%clk 0:00:39]} 28. Rxe5 {[%clk 0:00:45]}  Rae8 {[%clk 0:00:38]} 29. Rg5+ {[%clk 0:00:36]}  Kf6 {[%clk 0:00:36]} 30. Rg6+ {[%clk 0:00:36]}  Ke5 {[%clk 0:00:35]} 31. g3 {[%clk 0:00:15]}  Rxe6 {[%clk 0:00:35]} 32. Bf4+ {[%clk 0:00:15]}  Kd5 {[%clk 0:00:30]} 33. Rg5+ {[%clk 0:00:15]}  Re5 {[%clk 0:00:20]} 34. Bxe5 {[%clk 0:00:15]}  Rxe5 {[%clk 0:00:21]} 35. Rxe5+ {[%clk 0:00:15]}  Kxe5 {[%clk 0:00:22]} 36. Kf2 {[%clk 0:00:14]}  Bd5 {[%clk 0:00:19]} 37. Ke2 {[%clk 0:00:11]}  Be6 {[%clk 0:00:18]} 38. Kd2 {[%clk 0:00:11]}  Bd7 {[%clk 0:00:15]} 39. Kc1 {[%clk 0:00:10]}  Be6 {[%clk 0:00:13]} 40. Kb2 {[%clk 0:00:09]}  Bd7 {[%clk 0:00:12]} 41. a4 {[%clk 0:00:08]}  Bc6 {[%clk 0:00:10]} 42. a5 {[%clk 0:00:08]}  Bd7 {[%clk 0:00:10]} 43. Kc1 {[%clk 0:00:08]}  Bc6 {[%clk 0:00:10]} 44. Kd2 {[%clk 0:00:09]}  Bd7 {[%clk 0:00:10]} 45. c4 {[%clk 0:00:08]}  dxc3+ {[%clk 0:00:06]} 46. Kxc3 {[%clk 0:00:09]}  Bc6 {[%clk 0:00:05]} 47. Bg6 {[%clk 0:00:09]}  Kf6 {[%clk 0:00:05]} 48. Bh5 {[%clk 0:00:06]}  Ke5 {[%clk 0:00:05]} 49. Be2 {[%clk 0:00:06]}  Bb7 {[%clk 0:00:05]} 50. Kd3 {[%clk 0:00:06]}  Be4+ {[%clk 0:00:04]} 51. Ke3 {[%clk 0:00:06]}  Bd5 {[%clk 0:00:05]} 52. Bf3 {[%clk 0:00:06]}  Bxf3 {[%clk 0:00:02]} 53. Kxf3 {[%clk 0:00:07]}  Kd4 {[%clk 0:00:03]} 54. g4 {[%clk 0:00:07]}  Kc4 {[%clk 0:00:03]} 55. g5 {[%clk 0:00:06]}  Kxb4 {[%clk 0:00:03]} 56. g6 {[%clk 0:00:06]}  Kxa5 {[%clk 0:00:04]} 57. g7 {[%clk 0:00:07]}  Kb4 {[%clk 0:00:05]} 58. g8=Q {[%clk 0:00:07]}  a5 {[%clk 0:00:06]} 59. Qa2 {[%clk 0:00:07]}  a4 {[%clk 0:00:06]} 60. Ke4 {[%clk 0:00:08]}  Ka5 {[%clk 0:00:07]} 61. Kd4 {[%clk 0:00:09]}  b4 {[%clk 0:00:07]} 62. Kc5 {[%clk 0:00:09]}  b3 {[%clk 0:00:08]} 63. Qa3 {[%clk 0:00:09]}  Ka6 {[%clk 0:00:06]} 64. Qxa4+ {[%clk 0:00:10]}  Kb7 {[%clk 0:00:07]} 65. Qxb3+ {[%clk 0:00:10]}  Kc8 {[%clk 0:00:07]} 66. Qf7 {[%clk 0:00:10]}  Kb8 {[%clk 0:00:07]} 67. Kc6 {[%clk 0:00:11]}  Ka8 {[%clk 0:00:07]} 68. Qb7# {[%clk 0:00:11]} 1-0


[Site "https://www.chess.com"]

[Event "Titled Tuesday Blitz October 04 Early 2022"]
[White "Pakleza, Zbigniew"]
[Black "Milikow, Yoav"]
[WhiteFideId "1119290"]
[BlackFideId "2822237"]
[WhiteElo "2411"]
[BlackElo "2341"]
[Result "1/2-1/2"]
[Round "08"]
[TimeControl "180+1"]
[Date "2022.10.04"]
[WhiteClock "0:00:03"]
[BlackClock "0:00:07"]

1. d4 {[%clk 0:03:00]}  Nf6 {[%clk 0:02:56]} 2. Nf3 {[%clk 0:03:00]}  d5 {[%clk 0:02:56]} 3. Bf4 {[%clk 0:03:00]}  e6 {[%clk 0:02:56]} 4. e3 {[%clk 0:03:01]}  c5 {[%clk 0:02:57]} 5. c3 {[%clk 0:03:01]}  Nc6 {[%clk 0:02:58]} 6. Nbd2 {[%clk 0:03:01]}  cxd4 {[%clk 0:02:58]} 7. cxd4 {[%clk 0:03:01]}  Nh5 {[%clk 0:02:59]} 8. Be5 {[%clk 0:03:02]}  f6 {[%clk 0:02:56]} 9. Bg3 {[%clk 0:03:02]}  Nxg3 {[%clk 0:02:55]} 10. hxg3 {[%clk 0:03:03]}  Bd7 {[%clk 0:02:52]} 11. Bd3 {[%clk 0:03:02]}  Qb6 {[%clk 0:02:50]} 12. Qb3 {[%clk 0:02:59]}  Nb4 {[%clk 0:02:41]} 13. Rxh7 {[%clk 0:01:47]}  Nxd3+ {[%clk 0:02:17]} 14. Qxd3 {[%clk 0:01:48]}  Rxh7 {[%clk 0:02:18]} 15. Qxh7 {[%clk 0:01:48]}  Rc8 {[%clk 0:02:05]} 16. b3 {[%clk 0:01:19]}  Bb5 {[%clk 0:01:58]} 17. e4 {[%clk 0:00:49]}  Qc6 {[%clk 0:01:50]} 18. Rd1 {[%clk 0:00:39]}  Qc2 {[%clk 0:01:42]} 19. Qh5+ {[%clk 0:00:34]}  Ke7 {[%clk 0:01:26]} 20. exd5 {[%clk 0:00:34]}  Qd3 {[%clk 0:01:24]} 21. Ng1 {[%clk 0:00:32]}  Rc2 {[%clk 0:01:10]} 22. Qe2 {[%clk 0:00:17]}  Qxe2+ {[%clk 0:01:05]} 23. Nxe2 {[%clk 0:00:18]}  exd5 {[%clk 0:01:06]} 24. a4 {[%clk 0:00:17]}  Ba6 {[%clk 0:01:04]} 25. Rc1 {[%clk 0:00:14]}  Rxc1+ {[%clk 0:01:01]} 26. Nxc1 {[%clk 0:00:14]}  Kd7 {[%clk 0:00:59]} 27. Nf3 {[%clk 0:00:10]}  Bb4+ {[%clk 0:00:58]} 28. Kd1 {[%clk 0:00:10]}  Bf1 {[%clk 0:00:55]} 29. Ne1 {[%clk 0:00:10]}  Bc3 {[%clk 0:00:47]} 30. Ne2 {[%clk 0:00:09]}  Bxe2+ {[%clk 0:00:41]} 31. Kxe2 {[%clk 0:00:10]}  Bxd4 {[%clk 0:00:42]} 32. f3 {[%clk 0:00:08]}  Kd6 {[%clk 0:00:41]} 33. Nd3 {[%clk 0:00:07]}  g5 {[%clk 0:00:36]} 34. g4 {[%clk 0:00:07]}  Kc6 {[%clk 0:00:37]} 35. g3 {[%clk 0:00:06]}  b5 {[%clk 0:00:36]} 36. axb5+ {[%clk 0:00:04]}  Kxb5 {[%clk 0:00:37]} 37. f4 {[%clk 0:00:05]}  a5 {[%clk 0:00:34]} 38. Kd2 {[%clk 0:00:05]}  Bb6 {[%clk 0:00:30]} 39. Ke2 {[%clk 0:00:04]}  Bd4 {[%clk 0:00:23]} 40. Kd2 {[%clk 0:00:04]}  a4 {[%clk 0:00:21]} 41. bxa4+ {[%clk 0:00:05]}  Kxa4 {[%clk 0:00:22]} 42. Ke2 {[%clk 0:00:04]}  Kb3 {[%clk 0:00:21]} 43. Ne1 {[%clk 0:00:05]}  gxf4 {[%clk 0:00:17]} 44. gxf4 {[%clk 0:00:05]}  Bc3 {[%clk 0:00:16]} 45. Nd3 {[%clk 0:00:02]}  Kc2 {[%clk 0:00:13]} 46. g5 {[%clk 0:00:02]}  fxg5 {[%clk 0:00:13]} 47. fxg5 {[%clk 0:00:03]}  Bg7 {[%clk 0:00:12]} 48. g6 {[%clk 0:00:04]}  d4 {[%clk 0:00:09]} 49. Nb4+ {[%clk 0:00:04]}  Kc3 {[%clk 0:00:09]} 50. Nd3 {[%clk 0:00:05]}  Kc4 {[%clk 0:00:09]} 51. Nf4 {[%clk 0:00:05]}  Be5 {[%clk 0:00:07]} 52. Nd3 {[%clk 0:00:05]}  Bf6 {[%clk 0:00:06]} 53. Nf2 {[%clk 0:00:05]}  Bh8 {[%clk 0:00:06]} 54. Nd3 {[%clk 0:00:04]}  Kd5 {[%clk 0:00:07]} 55. Kf3 {[%clk 0:00:04]}  Ke6 {[%clk 0:00:07]} 56. Kg4 {[%clk 0:00:03]}  Kf6 {[%clk 0:00:07]} 57. Kh5 {[%clk 0:00:03]}  Bg7 {[%clk 0:00:07]} 58. Nf2 {[%clk 0:00:02]}  Kf5 {[%clk 0:00:08]} 59. Nd3 {[%clk 0:00:03]}  Ke4 {[%clk 0:00:08]} 60. Nc5+ {[%clk 0:00:03]}  Kd5 {[%clk 0:00:08]} 61. Nd3 {[%clk 0:00:03]}  Ke4 {[%clk 0:00:08]} 62. Nc5+ {[%clk 0:00:03]}  Ke5 {[%clk 0:00:08]} 63. Kg4 {[%clk 0:00:03]}  Kf6 {[%clk 0:00:08]} 64. Kf3 {[%clk 0:00:03]}  Kf5 {[%clk 0:00:07]} 65. Nd3 {[%clk 0:00:02]}  Bf8 {[%clk 0:00:07]} 66. Ne1 {[%clk 0:00:02]}  Bh6 {[%clk 0:00:06]} 67. Ke2 {[%clk 0:00:02]}  Kxg6 {[%clk 0:00:07]} 68. Nc2 {[%clk 0:00:03]}  Kf5 {[%clk 0:00:07]} 69. Nxd4+ {[%clk 0:00:03]} 1/2-1/2


[Site "https://www.chess.com"]

[Event "Titled Tuesday Blitz October 04 Early 2022"]
[White "Piesik, Piotr"]
[Black "Vokhidov, Shamsiddin"]
[WhiteFideId "1136194"]
[BlackFideId "14204223"]
[WhiteElo "2323"]
[BlackElo "2619"]
[Result "0-1"]
[Round "08"]
[TimeControl "180+1"]
[Date "2022.10.04"]
[WhiteClock "0:00:36"]
[BlackClock "0:00:36"]

1. Nf3 {[%clk 0:02:59]}  c5 {[%clk 0:03:00]} 2. e4 {[%clk 0:02:58]}  g6 {[%clk 0:03:01]} 3. c3 {[%clk 0:02:57]}  d5 {[%clk 0:03:00]} 4. exd5 {[%clk 0:02:56]}  Qxd5 {[%clk 0:03:01]} 5. d4 {[%clk 0:02:56]}  Bg7 {[%clk 0:03:01]} 6. Na3 {[%clk 0:02:33]}  Nf6 {[%clk 0:02:52]} 7. Bc4 {[%clk 0:02:27]}  Qe4+ {[%clk 0:02:23]} 8. Be3 {[%clk 0:02:26]}  O-O {[%clk 0:02:21]} 9. dxc5 {[%clk 0:02:21]}  Ng4 {[%clk 0:02:20]} 10. Qc2 {[%clk 0:02:08]}  Qc6 {[%clk 0:02:13]} 11. Qe2 {[%clk 0:01:50]}  Nxe3 {[%clk 0:02:01]} 12. Qxe3 {[%clk 0:01:51]}  Nd7 {[%clk 0:02:01]} 13. Qxe7 {[%clk 0:01:40]}  Nxc5 {[%clk 0:01:47]} 14. O-O {[%clk 0:01:39]}  Bf6 {[%clk 0:01:39]} 15. Qe3 {[%clk 0:01:29]}  Re8 {[%clk 0:01:35]} 16. Qf4 {[%clk 0:01:17]}  Re4 {[%clk 0:01:33]} 17. Qh6 {[%clk 0:01:10]}  Rg4 {[%clk 0:01:22]} 18. h3 {[%clk 0:01:03]}  Bg7 {[%clk 0:01:10]} 19. Qd2 {[%clk 0:01:01]}  Rxg2+ {[%clk 0:00:59]} 20. Kxg2 {[%clk 0:01:00]}  Bxh3+ {[%clk 0:01:00]} 21. Kh2 {[%clk 0:00:48]}  Qxf3 {[%clk 0:00:51]} 22. Qg5 {[%clk 0:00:48]}  Ne4 {[%clk 0:00:43]} 23. Bd5 {[%clk 0:00:40]}  Nxg5 {[%clk 0:00:36]} 24. Bxf3 {[%clk 0:00:39]}  Bxf1 {[%clk 0:00:37]} 25. Bxb7 {[%clk 0:00:36]}  Rb8 {[%clk 0:00:36]} 0-1


[Site "https://www.chess.com"]

[Event "Titled Tuesday Blitz October 04 Early 2022"]
[White "Samunenkov, Ihor"]
[Black "Kosakowski, Jakub"]
[WhiteFideId "14187086"]
[BlackFideId "1185080"]
[WhiteElo "2441"]
[BlackElo "2463"]
[Result "0-1"]
[Round "08"]
[TimeControl "180+1"]
[Date "2022.10.04"]
[WhiteClock "0:00:04"]
[BlackClock "0:00:03"]

1. d4 {[%clk 0:02:56]}  Nf6 {[%clk 0:02:58]} 2. c4 {[%clk 0:02:57]}  e6 {[%clk 0:02:58]} 3. Nf3 {[%clk 0:02:57]}  b6 {[%clk 0:02:58]} 4. g3 {[%clk 0:02:56]}  Ba6 {[%clk 0:02:58]} 5. Qa4 {[%clk 0:02:55]}  Bb7 {[%clk 0:02:58]} 6. Bg2 {[%clk 0:02:55]}  Be7 {[%clk 0:02:52]} 7. O-O {[%clk 0:02:53]}  O-O {[%clk 0:02:53]} 8. Nc3 {[%clk 0:02:53]}  Ne4 {[%clk 0:02:52]} 9. Bd2 {[%clk 0:02:35]}  f5 {[%clk 0:02:50]} 10. Be1 {[%clk 0:02:27]}  Bf6 {[%clk 0:02:43]} 11. Ne5 {[%clk 0:02:04]}  Nxc3 {[%clk 0:02:38]} 12. Bxc3 {[%clk 0:02:04]}  Bxg2 {[%clk 0:02:39]} 13. Kxg2 {[%clk 0:02:05]}  d6 {[%clk 0:02:38]} 14. Nd3 {[%clk 0:02:03]}  Qc8 {[%clk 0:02:33]} 15. Rae1 {[%clk 0:01:55]}  Qb7+ {[%clk 0:02:23]} 16. f3 {[%clk 0:01:54]}  c5 {[%clk 0:02:10]} 17. e3 {[%clk 0:01:52]}  Nd7 {[%clk 0:01:54]} 18. b4 {[%clk 0:01:50]}  cxd4 {[%clk 0:01:48]} 19. exd4 {[%clk 0:01:37]}  Rac8 {[%clk 0:01:48]} 20. Qb3 {[%clk 0:01:35]}  Qc7 {[%clk 0:01:42]} 21. Nb2 {[%clk 0:01:21]}  Rfe8 {[%clk 0:01:38]} 22. f4 {[%clk 0:01:07]}  Qc6+ {[%clk 0:01:24]} 23. Kg1 {[%clk 0:01:03]}  Nf8 {[%clk 0:01:23]} 24. d5 {[%clk 0:00:50]}  exd5 {[%clk 0:01:18]} 25. Rxe8 {[%clk 0:00:37]}  Rxe8 {[%clk 0:01:18]} 26. Bxf6 {[%clk 0:00:37]}  gxf6 {[%clk 0:01:09]} 27. cxd5 {[%clk 0:00:38]}  Qb5 {[%clk 0:01:09]} 28. Qc4 {[%clk 0:00:36]}  Qd7 {[%clk 0:01:03]} 29. Qc6 {[%clk 0:00:27]}  Qe7 {[%clk 0:00:59]} 30. Nc4 {[%clk 0:00:28]}  Qe4 {[%clk 0:00:54]} 31. Nxd6 {[%clk 0:00:23]}  Qd4+ {[%clk 0:00:53]} 32. Kh1 {[%clk 0:00:22]}  Re7 {[%clk 0:00:17]} 33. Qc4 {[%clk 0:00:16]}  Qd2 {[%clk 0:00:11]} 34. Nxf5 {[%clk 0:00:07]}  Re2 {[%clk 0:00:11]} 35. d6+ {[%clk 0:00:07]}  Kh8 {[%clk 0:00:11]} 36. Qc6 {[%clk 0:00:05]}  Rxh2+ {[%clk 0:00:09]} 37. Kg1 {[%clk 0:00:06]}  Rh5 {[%clk 0:00:07]} 38. Qg2 {[%clk 0:00:02]}  Qxg2+ {[%clk 0:00:05]} 39. Kxg2 {[%clk 0:00:02]}  Rxf5 {[%clk 0:00:05]} 40. Rc1 {[%clk 0:00:03]}  Rd5 {[%clk 0:00:05]} 41. Rc8 {[%clk 0:00:02]}  Kg7 {[%clk 0:00:05]} 42. Rc7+ {[%clk 0:00:03]}  Kg6 {[%clk 0:00:05]} 43. Rxa7 {[%clk 0:00:04]}  Rxd6 {[%clk 0:00:05]} 44. a4 {[%clk 0:00:04]}  Ne6 {[%clk 0:00:05]} 45. a5 {[%clk 0:00:04]}  bxa5 {[%clk 0:00:05]} 46. bxa5 {[%clk 0:00:04]}  Rd2+ {[%clk 0:00:05]} 47. Kh3 {[%clk 0:00:03]}  Rd3 {[%clk 0:00:05]} 48. Kg4 {[%clk 0:00:02]}  h5+ {[%clk 0:00:05]} 49. Kh4 {[%clk 0:00:03]}  Nd4 {[%clk 0:00:06]} 50. a6 {[%clk 0:00:02]}  Nf5+ {[%clk 0:00:06]} 51. Kh3 {[%clk 0:00:02]}  Rxg3+ {[%clk 0:00:07]} 52. Kh2 {[%clk 0:00:03]}  Ra3 {[%clk 0:00:07]} 53. Ra8 {[%clk 0:00:04]}  Kg7 {[%clk 0:00:04]} 54. a7 {[%clk 0:00:04]}  Ne3 {[%clk 0:00:02]} 55. Re8 {[%clk 0:00:04]}  Ng4+ {[%clk 0:00:02]} 56. Kg2 {[%clk 0:00:04]}  Rxa7 {[%clk 0:00:03]} 57. Kg3 {[%clk 0:00:05]}  Kg6 {[%clk 0:00:03]} 58. Kh4 {[%clk 0:00:04]}  Ra1 {[%clk 0:00:03]} 0-1


[Site "https://www.chess.com"]